Cogmind - Beta 15 @@@ ROGUE MODE // 2025.09.12 @ 21:50:06 Player: cottonman132 Result: Destroyed by D-53 Grenadier with Mini Grenade Launcher Performance ------------- Evolutions (1) 500 Regions Visited (4) 800 Robots Destroyed (42) 210 Value Destroyed (1046) 1046 Prototype IDs (0) 0 Alien Tech Used (0) 0 Bonus (0) 0 TOTAL SCORE: 2556 Bonus ------- None Cogmind --------- Core Integrity 0/400 Matter 300/300 Energy 100/100 System Corruption 0% Temperature Cool (0) Movement Core (750) Ox14 Location -9/Mines Parts ------- > --- POWER (1) -------- (None) > --- PROPULSION (3) --- (None) > --- UTILITY (3) ------ High-capacity Storage Unit System Shield > --- WEAPON (2) ------- Katana Katana > --- INVENTORY (20) --- Light Ion Engine Light Ion Engine Faulty Cooled Ion Engine Cooled Ion Engine Cooled Ion Engine Aluminum Leg Visual Processing Unit Sensor Array Signal Interpreter Improved Terrain Scanner Improved Terrain Scan Processor Medium Armor Plating Katana Peak State ------------ > --- POWER ------------ (None) > --- PROPULSION ------- Aluminum Leg Aluminum Leg Aluminum Leg > --- UTILITY ---------- High-capacity Storage Unit Hardened Light Armor Plating System Shield > --- WEAPON ----------- Katana Katana > --- INVENTORY -------- Light Ion Engine Light Ion Engine Cooled Ion Engine Cooled Ion Engine Cooled Ion Engine Aluminum Leg Visual Processing Unit Sensor Array Signal Interpreter Improved Terrain Scanner Improved Terrain Scan Processor Medium Armor Plating Katana [Rating: 17] Favorites ----------- Power Light Ion Engine Engine Light Ion Engine Propulsion Aluminum Leg Treads Light Treads Leg Aluminum Leg Utility Small Storage Unit Device Seismic Detector Storage Small Storage Unit Hackware System Shield Protection Hardened Light Armor Plating Weapon Katana Launcher Grenade Launcher Slashing Weapon Katana Build | -11 -10 -10 -9 -9 ------- Run | Yrd Mat Min Mat Min Slots Evolved 2 | . . . 2 . Power . | . . . . . Propulsion 1 | . . . 1 . Utility 1 | . . . 1 . Weapon . | . . . . . Parts Attached 29 | 5 . 3 19 2 Power 4 | 1 . 1 2 . Engine 4 | 1 . 1 2 . Core . | . . . . . Reactor . | . . . . . Propulsion 12 | 2 . 1 8 1 Treads 4 | . . . 4 . Leg 8 | 2 . 1 4 1 Wheel . | . . . . . Hover . | . . . . . Flight . | . . . . . Utility 9 | 2 . 1 5 1 Device 3 | 1 . 1 1 . Storage 2 | 1 . . 1 . Processor . | . . . . . Hackware 1 | . . . . 1 Protection 3 | . . . 3 . Artifact . | . . . . . Weapon 4 | . . . 4 . Energy Gun . | . . . . . Energy Cannon . | . . . . . Ballistic Gun . | . . . . . Ballistic Cannon . | . . . . . Launcher 1 | . . . 1 . Special Weapon . | . . . . . Impact Weapon . | . . . . . Slashing Weapon 3 | . . . 3 . Piercing Weapon . | . . . . . Special Melee Weapon . | . . . . . Unidentified Prototypes . | . . . . . Parts Lost 20 | . . 4 9 7 Power 4 | . . 1 2 1 Propulsion 10 | . . 2 4 4 Utility 6 | . . 1 3 2 Weapon . | . . . . . Highest Loss Streak 4 | . . 2 2 4 To Critical Strikes . | . . . . . Average Backups 7 | 2 4 7 7 12 Power 1 | . 1 1 1 5 Propulsion 1 | 1 2 3 . . Utility 3 | . 1 2 4 6 Weapon . | . . . . 1 Tool/Special . | . . . . . Unused Backups 13 | . . . . 13 Power 5 | . . . . 5 Propulsion 1 | . . . . 1 Utility 6 | . . . . 6 Weapon 1 | . . . . 1 Tool/Special . | . . . . . Average Slot Usage (%) 74 | . 71 64 79 87 Engine 11 | . 14 14 10 5 Treads 5 | . . . 11 . Leg 19 | . 28 22 13 31 Device 7 | . 14 13 3 . Storage 12 | . 14 14 11 11 Protection 8 | . . . 14 15 Slashing Weapon 9 | . . . 14 22 Peak Build Rating 17 | 5 5 6 16 17 Average Rating 8 | 3 5 5 11 15 On Entrance 6 | . 5 5 4 16 Naked Turns . | . . . . . Heaviest Build 55 | 11 11 11 55 55 Greatest Support 60 | 20 20 20 60 30 Greatest Overweight (x) 14 | . . . 2 14 Average Overweight (x) . | . . . . 1 Largest Inventory Capacity 20 | 8 8 8 20 20 Average Capacity 10 | 7 8 8 11 20 Most Carried 14 | 5 5 8 14 14 Average Carried 7 | 2 4 7 7 12 Final Capacity 20 | 8 8 8 20 20 Final Carried 13 | 4 5 7 13 13 Class Distribution -------------------- 77% | Mutant 22% | Scavenger-Mutant Dominant Class ---------------- Mutant | -10/Materials Mutant | -10/Mines Mutant | -9/Materials Mutant | -9/Mines Resources | -11 -10 -10 -9 -9 ----------- Run | Yrd Mat Min Mat Min Matter Collected 563 | 198 . . 345 20 Remotely . | . . . . . Salvage Created 1026 | 2 . . 871 153 Parts 66 | 5 . 1 57 3 Haulers Intercepted 1 | . . . 1 . Recyclers Shooed 2 | . . 1 . 1 Parts Field Recycled . | . . . . . Retrieved Matter . | . . . . . Parts Self-Destructed . | . . . . . Prevented . | . . . . . Kills | -11 -10 -10 -9 -9 ------- Run | Yrd Mat Min Mat Min Combat Hostiles Destroyed 35 | . . 4 27 4 Melee 29 | . . 4 21 4 AOE 6 | . . . 6 . Classes Destroyed 9 | 1 . 1 6 1 Worker 2 | . . . 2 . Tunneler 3 | 3 . . . . Hauler 1 | . . . 1 . Operator 1 | . . . 1 . Watcher 1 | . . . 1 . Swarmer 12 | . . 4 8 . Grunt 17 | . . . 14 3 Sentry 5 | . . . 5 . Assembled 1 | . . . . 1 Best Kill Streak 6 | 2 . 2 6 2 Combat Bots Only 6 | . . 2 6 2 Max Kills in Single Turn 2 | 1 . 1 2 1 Gunslinging . | . . . . . Exploded 2 | . . . 2 . Melee 1 | . . 1 1 1 Uniques/NPCs Destroyed . | . . . . . Combat | -11 -10 -10 -9 -9 -------- Run | Yrd Mat Min Mat Min Hostile Shots Fired 338 | . 26 76 206 30 Missed 100 | . 15 17 64 4 Hits 238 | . 11 59 142 26 Melee 1 | . . . . 1 Projectile 237 | . 11 59 142 25 AOE 8 | . . . . 8 Critical Strikes 6 | . 1 1 4 . Damage Taken 2826 | . 79 479 1699 569 Core 623 | . 21 183 298 121 Absorbed by Shields . | . . . . . Regen/Repaired (Parts) 86 | . . . 86 . Core Remaining (%) 59 | 100 . 18 . . Volleys Fired 21 | . . . 21 . Largest 1 | . . . 1 . Hottest 30 | . . . 30 . Shots Fired 21 | . . . 21 . Gun . | . . . . . Cannon . | . . . . . Launcher 21 | . . . 21 . Special . | . . . . . Kinetic . | . . . . . Thermal . | . . . . . Explosive 21 | . . . 21 . Electromagnetic . | . . . . . Robot Hit Streak 5 | . . . 5 . Robot Miss Streak 1 | . . . 1 . Penetration Max . | . . . . . Secondary Targets . | . . . . . Shots Hit Robots 60 | . . . 49 11 Core Hits 90 | 12 . 23 51 4 Critical Kills . | . . . . . Critical Parts Destroyed . | . . . . . Critical Strikes 5 | . . . 5 . Sever 5 | . . . 5 . Melee Attacks 64 | . . . 49 15 Impact . | . . . . . Slashing 64 | . . . 49 15 Piercing . | . . . . . Sneak Attacks 6 | . . . 5 1 Combat Hostiles . | . . . . . Follow-up Attacks 5 | . . . 5 . Damage Inflicted 2517 | 44 . 102 1986 385 Guns . | . . . . . Cannons . | . . . . . Explosions 530 | . . . 530 . Melee 1821 | . . . 1436 385 Ramming 166 | 44 . 102 20 . Kinetic . | . . . . . Thermal . | . . . . . Explosive 530 | . . . 530 . Electromagnetic . | . . . . . Impact . | . . . . . Slashing 1821 | . . . 1436 385 Piercing . | . . . . . Highest Corruption . | . . . . . Average Corruption . | . . . . . Corruption Purged . | . . . . . Corruption Blocked . | . . . . . Overload Shots . | . . . . . Overflow Damage 96 | . . . 93 3 Projectiles . | . . . . . Explosions . | . . . . . Melee 96 | . . . 93 3 Knockbacks . | . . . . . Impact . | . . . . . Kinetic . | . . . . . Secondary . | . . . . . Self-Inflicted Damage . | . . . . . Shots . | . . . . . Rammed 11 | . . . 11 . Targets Rammed 81 | 20 . 47 14 . Kicked 67 | 20 . 47 . . Crushed 3 | . . . 3 . Highest Temperature 25 | . . . 25 . Average Temperature 8 | . . . 8 . Received Heat Transfer 708 | . . . 585 123 Siege Activations . | . . . . . Martial Activations . | . . . . . Shielding Activations . | . . . . . Robots Disrupted . | . . . . . Combat Hostiles . | . . . . . Robots Corrupted . | . . . . . Combat Hostiles . | . . . . . Parts Fried . | . . . . . Impact Corruptions . | . . . . . Robots Melted . | . . . . . Combat Hostiles . | . . . . . Parts Melted . | . . . . . Heat Transferred . | . . . . . Parts Sabotaged . | . . . . . Parts Stolen . | . . . . . Parts Stripped . | . . . . . Power Chain Reactions . | . . . . . Alert | -11 -10 -10 -9 -9 ------- Run | Yrd Mat Min Mat Min Maximum Alert Level 1 | . . . 1 . Low Security (%) 70 | 100 100 100 32 100 Level 1 29 | . . . 67 . Level 2 . | . . . . . Level 3 . | . . . . . Level 4 . | . . . . . Level 5 . | . . . . . High Security . | . . . . . Max Security . | . . . . . Peak Influence 388 | 10 . 50 388 140 Initial 140 | . . . . 140 Average 108 | . . 5 220 98 Influence Increases 1036 | 15 . 100 851 70 Destroy 0b10 Robot/C 680 | . . 80 540 60 Destroy 0b10 Robot/NC 40 | 15 . . 25 . Destroy Leader 154 | . . 20 124 10 Successful Hack 23 | . . . 23 . Disable Machine 60 | . . . 60 . Destroy Structure 64 | . . . 64 . Lose Combat Pursuer 15 | . . . 15 . Influence Decreases 1036 | 15 . 100 491 430 Entered New Map 220 | . . . . 220 Time Decay 646 | 15 . 100 411 120 Lost Part 150 | . . . 80 70 Lost Ally 20 | . . . . 20 Squads Dispatched 6 | . 2 . 4 . Investigation 2 | . . . 2 . Extermination . | . . . . . Reinforcement 4 | . 2 . 2 . Assault . | . . . . . Garrison . | . . . . . Intercept . | . . . . . Searches Triggered . | . . . . . Construction Impeded . | . . . . . Haulers Reinforced . | . . . . . Active Scanning Responses . | . . . . . Cargo Convoy Interrupts . | . . . . . Stealth | -11 -10 -10 -9 -9 --------- Run | Yrd Mat Min Mat Min Distress Signals 1 | . . . 1 . Communications Jammed . | . . . . . Distress Signals . | . . . . . Times Spotted 70 | . 9 6 37 18 Peak Tracking Total 7 | . 7 3 5 5 Tactical Retreats 2 | . . . 1 1 Traps | -11 -10 -10 -9 -9 ------- Run | Yrd Mat Min Mat Min Traps Triggered 1 | . . . 1 . Indirectly . | . . . . . Trap Hack Attempts . | . . . . . Triggered . | . . . . . Disarmed . | . . . . . Reprogrammed . | . . . . . Reused . | . . . . . Traps Extracted . | . . . . . Installed . | . . . . . Triggered . | . . . . . Machines | -11 -10 -10 -9 -9 ---------- Run | Yrd Mat Min Mat Min Machines Disabled 4 | . . . 4 . Max in Single Turn 2 | . . . 2 . Machines Repaired . | . . . . . Machines Dismantled . | . . . . . Machines Sabotaged . | . . . . . Overloaded Fab Kills . | . . . . . Hacking | -11 -10 -10 -9 -9 --------- Run | Yrd Mat Min Mat Min Machines Accessed 5 | . . . 5 . Terminals 3 | . . . 3 . Fabricators . | . . . . . Repair Stations 1 | . . . 1 . Recycling Units 1 | . . . 1 . Scanalyzers . | . . . . . Garrison Access . | . . . . . Total Hacks 13 | . . . 13 . Successful 8 | . . . 8 . Failed 5 | . . . 5 . Catastrophic 1 | . . . 1 . Database Lockouts . | . . . . . Manual . | . . . . . Terminals 8 | . . . 8 . Fabricators . | . . . . . Repair Stations 3 | . . . 3 . Recycling Units 2 | . . . 2 . Scanalyzers . | . . . . . Garrison Access . | . . . . . Terminal Hacks 4 | . . . 4 . Record 2 | . . . 2 . Emergency Access Points 1 | . . . 1 . Hauler Manifests 1 | . . . 1 . Fabricator Hacks . | . . . . . Repair Station Hacks 2 | . . . 2 . Scan Component 1 | . . . 1 . Repair 1 | . . . 1 . Recycling Unit Hacks 2 | . . . 2 . Report Inventory 1 | . . . 1 . Retrieve Components 1 | . . . 1 . Scanalyzer . | . . . . . Garrison Access Hacks . | . . . . . Unauthorized Hacks . | . . . . . Terminals . | . . . . . Fabricators . | . . . . . Repair Stations . | . . . . . Recycling Units . | . . . . . Scanalyzers . | . . . . . Garrison Access . | . . . . . Data Cores Recovered . | . . . . . Used . | . . . . . Hacking Detections 4 | . . . 4 . Full Trace Events 2 | . . . 2 . Feedback Events . | . . . . . Feedback Blocked . | . . . . . Robot Schematics Acquired . | . . . . . Robots Built . | . . . . . Authchips . | . . . . . Time . | . . . . . Total Robot Build Rating . | . . . . . Part Schematics Acquired . | . . . . . Parts Built . | . . . . . Authchips . | . . . . . Time . | . . . . . Total Part Build Rating . | . . . . . Parts Repaired 1 | . . . 1 . Time 26 | . . . 26 . Parts Recycled . | . . . . . Recycled Matter . | . . . . . Retrieved Matter . | . . . . . Retrieved Components 10 | . . . 10 . Parts Scanalyzed . | . . . . . Part Schematics Acquired . | . . . . . Parts Damaged . | . . . . . Bothacking | -11 -10 -10 -9 -9 ------------ Run | Yrd Mat Min Mat Min Used RIF Installer . | . . . . . Robots Hacked . | . . . . . Non-combat . | . . . . . Combat . | . . . . . Robot Hacks Applied . | . . . . . Relay Couplers Released . | . . . . . Fabnet Peak Effective % . | . . . . . Robots Rewired . | . . . . . Allies Hacked . | . . . . . Hacks Repelled . | . . . . . Allies | -11 -10 -10 -9 -9 -------- Run | Yrd Mat Min Mat Min Total Allies 2 | . . . . 2 Largest Group 2 | . . . . 2 Highest-Rated Group 50 | . . . . 50 Highest-Rated Ally 31 | . . . . 31 Total Orders . | . . . . . Ally Attacks 3 | . . . . 3 Total Damage 43 | . . . . 43 Kills . | . . . . . Allies Corrupted . | . . . . . Allies Melted . | . . . . . Intel | -11 -10 -10 -9 -9 ------- Run | Yrd Mat Min Mat Min Active Infowar (turns) 1355 | 16 76 919 344 . Seismic 1355 | 16 76 919 344 . Robot Analysis Total . | . . . . . Derelict Logs Recovered 2 | . . 2 . . Drone Launches . | . . . . . Drone Recoveries . | . . . . . Exploration | -11 -10 -10 -9 -9 ------------- Run | Yrd Mat Min Mat Min Turns Passed 2688 | 196 76 982 1189 245 Spaces Moved 1612 | 136 63 748 565 100 Core 8 | 7 . . . 1 Treads 259 | . . . 259 . Legs 1345 | 129 63 748 306 99 Wheels . | . . . . . Hover . | . . . . . Flight . | . . . . . Fastest Speed 50 | 50 120 120 120 190 Average Speed 139 | 116 120 120 162 198 Slowest Speed 750 | 120 120 120 260 750 Overloaded Moves . | . . . . . Propulsion Burnouts . | . . . . . Robots Hopped . | . . . . . Potential Cave-ins . | . . . . . Cave-ins Triggered . | . . . . . Exploration Rate (%) 39 | 6 23 99 48 22 Regions Visited 4 Branch Regions 2 Pre-discovered Areas 2 | . . 2 . . Known Exits Taken . | . . . . . Unknown Exits Taken 4 | 1 1 1 1 . Scrap Searched 2 | . . 1 . 1 Spaces Dug . | . . . . . Terrain Destroyed 82 | . . . 82 . Melee . | . . . . . Projectile . | . . . . . AOE 82 | . . . 82 . Terrain Rammed . | . . . . . Walls Destroyed . | . . . . . Machines Disabled . | . . . . . Actions | -11 -10 -10 -9 -9 --------- Run | Yrd Mat Min Mat Min Total 1917 | 169 63 822 737 126 Wait 75 | . . 21 47 7 Move 1608 | 135 62 747 564 100 Hop . | . . . . . Pick Up 38 | 9 1 4 22 2 Fast Attach 5 | . . 1 4 . Attach 22 | 5 . 2 13 2 Detach . | . . . . . Swap 4 | . . . 4 . Drop 5 | . . . 5 . Fire 21 | . . . 21 . Melee 58 | . . . 43 15 Ram . | . . . . . Kick 67 | 20 . 47 . . Crush 14 | . . . 14 . Escape Stasis . | . . . . . Rewire . | . . . . . Trap . | . . . . . Miscellaneous . | . . . . . Route ------- -11/Scrapyard -10/Materials -10/Mines (discovered 2 exits: *Mat x2) -9/Materials (discovered 2 exits: [*Mat] / [*Min]) -9/Mines History --------- Turn | Location | Event 5 | -11/Scrapyard | Discovered new exit (range 16) 197 | -11/Scrapyard | Entered Materials 264 | -10/Materials | Discovered new exit (range 6) 273 | -10/Materials | Entered Mines 316 | -10/Mines | Build established: Mutant 324 | -10/Mines | Core integrity fell below 50% 349 | -10/Mines | Found DCF Scrap (10 items) 353 | -10/Mines | Learned location of Zion (-6) 384 | -10/Mines | Learned Materials terminal intel 565 | -10/Mines | Learned location of Storage (-7) 770 | -10/Mines | Received a Rocket Launcher from a helpful Derelict 944 | -10/Mines | Core integrity fell below 20% 1040 | -10/Mines | Discovered new exit (range 13) 1237 | -10/Mines | Discovered new exit (range 11) 1255 | -10/Mines | Entered Materials 1255 | -9/Materials | Evolved 2 slots: Propulsion x1, Utility x1 1256 | -9/Materials | Loaded intel: 12 terminal locations 1644 | -9/Materials | Core integrity fell below 50% 2052 | -9/Materials | Repaired Aluminum Leg 2111 | -9/Materials | Discovered new exit (range 10) 2358 | -9/Materials | Build established: Scavenger-Mutant 2436 | -9/Materials | Discovered new exit (range 5) 2444 | -9/Materials | Entered Mines 2584 | -9/Mines | Lost 3 parts (1p1n1u) 2636 | -9/Mines | Assembled infested the area 2641 | -9/Mines | Assisted by a Guerilla fighting off Assembled 2681 | -9/Mines | Core integrity fell below 20% 2689 | -9/Mines | Destroyed by D-53 Grenadier with Mini Grenade Launcher Last Messages --------------- 02638_ Found 43 Matter. 02642_ Acquired Med. Armor Plating. 02655_ GS-E8Z(g) destroyed. 02656_ Acquired 10 matter. 02669_ Destroyed Asb. Hover Unit. 02669_ Aluminum Leg destroyed. 02672_ as-10858 destroyed. 02680_ C-30 ARC bursts open, deploying its payload. 02680_ D-53 Grenadier unfolds itself. 02680_ Hrd. Light Armor Plating destroyed. 02680_ Aluminum Leg destroyed. 02680_ as-43797 destroyed. 02682_ The unstable cave ceiling collapses. 02683_ Aluminum Leg destroyed. 02683_ as-70734 destroyed. 02685_ as-93483 destroyed. 02686_ D-53 Grenadier knocked back. 02687_ as-99494 destroyed. 02688_ The unstable cave ceiling collapses. Map ----- +----------------------------------------------------+ | ?????????????????????????????????????????????????? | | ?????????????????????????????????????????????????? | | ?????????????????????????????????????????????????? | | ?????????????????????????????????????????????????? | | ?????????????????????????????????????????????????? | | ?????????????????????????????????????????????????? | | ?????????????????????????????????????????????????? | | ?????????????????????????????????????????????????? | | ?????????????????????????????????????????????????? | | ?????????????????????????????????????????????????? | | ?????????????????????????????????????????????????? | | ?????????????????????????????????????????????????? | | ?????????????????????????????????????????????????? | | ???????????????? #?###???????????????????????????? | | ?????????????????a ???????????????????????????? | | ?????????????????? a ???????????????????????????? | | ??????????????????# #??????????????????????????? | | ?????????????????## #??????????????????????????? | | ?????????????????# a #??????????????###?????????? | | ?????????????????# #???????????? ?????????? | | ??????????????????# #######???? ???????????? | | ???????????????????# a # ##? #????????????? | | ???????????????????#=% # # #?????????????? | | ??????????????????## a d ???????????????? | | ???????????????#### % ##?????????????????? | | ???????????????# = @ # #?????####????????? | | ???????????????## d #????## ##???????? | | ????????????????## % ####### #???????? | | ?????????????????## ] %#???????? | | ??????????????????# ####### ##???????? | | ??????????????????## #?????# #????????? | | ???????????????????##### ####?????# ##???????? | | ???????????????????????#####????????## #???????? | | ?????????????????????????????????????## #???????? | | ???????????????????????????????####??## #???????? | | ??????????????????????????????## #### #???????? | | ??????????#???????????????????# %####### # | | ?????????? ??????????????###?## ] #% | | ?????????? ??????######### ### ## % | | ?????????# ??????# ## ####### | | ?????????# ??????# ! # #?????? | | ?????????# ??????# ###### * #?????? | | ????????## ##????# #????###### #?????? | | ????????? #????# #?????????### #####?????? | | ????????? #????# #???????????########?????????? | | ?????????# #????# #????????????????????????????? | | ?????????# #????# #????????????????????????????? | | ????###### #????# #????????????????????????????? | | ???## #????# #????????????????????????????? | | ???# ###### #????????????????????????????? | +----------------------------------------------------+ Best States ------------- Heat Dissipation 28 Energy Generation 10 Energy Capacity 250 Matter Stores 300 Matter Capacity 300 Sight Range 16 Terrain Scan Density 10 Armor Coverage 300 Evasion (%) 55 Recoil Reduction 3 Defensive Hacking 10 Item Schematics ----------------- None Robot Schematics ------------------ None Fabricated ------------ Nothing Repaired ---------- Aluminum Leg | 4% | -9/Materials Alien Tech Used ----------------- None Achievements -------------- None Challenges ------------ None Game ------ Seed RingVampiricDisintegrator Manual? 0 Play Time 00:25:24 Cumulative 6.4 hours Start 2025.09.12 @ 21:24:28 End 2025.09.12 @ 21:50:06 Sessions 1 Manual Loads 0 Difficulty Rogue Special Mode None Game No. 13 Rogue 13 Adventurer 0 Explorer 0 Win Type - Total 0 Types 0/0/0/0/0/0/0/0/0/0 Lore% 10 Gallery% 8 Achievement% 14 Wizard Run 0 Options --------- Layout 2 ASCII 0 Keyboard 0 Movement Mouse Keybinds 0 Fullscreen 1 Font 24/Smallcaps Map View 50x44 Zoom Use 0% Tactical HUD 1 Map Filters NONE Filters NONE Steam 1 RUN: cdf66196-04ac-410e-b164-7b281d5504a4